[Event "Kvika Banki League Iceland 2022-23"]
[Site "Reykjavik"]
[Date "2022.10.16"]
[Round "5.8"]
[White "Bergthorsson, Jon Thor"]
[Black "Mai, Alexander Oliver"]
[Result "0-1"]
[ECO "E07"]
[WhiteElo "2145"]
[BlackElo "2183"]
[Annotator "TA"]
[PlyCount "74"]
[EventDate "2022.10.13"]
[EventType "team-tourn"]
[EventCountry "ISL"]
[SourceTitle "playchess.com"]
[Source "ChessBase"]
[SourceQuality "1"]
[TimeControl "5400+30"]

{[%evp 16,74,2,0,19,-21,-9,-17,-18,-58,-41,-48,-20,-19,0,0,39,0,2,-57,-55,-50,-7,-75,-9,-26,83,-76,-80,-121,-122,-125,-120,-120,-118,-112,-95,-89,14,-125,-134,-132,-90,-179,-163,-212,-199,-288,-284,-333,-304,-473,-358,-464,-464,-435,-437,-1132,-1086,-1308,-1364]} 1. d4 {[%emt 0:00:14]} Nf6 {[%emt 0:00:14]} 2. c4 {[%emt 0:00:06]} e6 {[%emt 0:00:07]} 3. Nf3 {[%emt 0:01:36]} d5 {[%emt 0:00:19]} 4. g3 {[%emt 0:00:05]} Bb4+ {[%emt 0:01:03]} 5. Bd2 {[%emt 0:00:23]} Be7 {[%emt 0:00:13]} 6. Bg2 {[%emt 0:00:07]} O-O {[%emt 0:00:10]} 7. O-O {[%emt 0:03:18]} c6 {[%emt 0:01:20]} 8. Bf4 {[%emt 0:03:13]} Nbd7 $1 {[%emt 0:06:03] The main line 8...Nbd7 scores better than 8...b6.} 9. Nc3 {[%emt 0:00:44] 9.Qc2 is not played anymore.} Nh5 {[%emt 0:02:13] was the old line (9...dxc4). E07: Closed Catalan: Main Line (5 Nf3 0-0 6 0-0 Nbd7).} 10. Qd3 {[%emt 0:04:08]} Nxf4 {[%emt 0:02:47]} 11. gxf4 {[%emt 0:00:08]} b6 {[%emt 0:01:32] [#] The position is equal.} 12. Kh1 $146 {[%emt 0:07:25]} ({Predecessor:} 12. cxd5 exd5 13. Kh1 Nf6 14. Ne5 Qd6 15. Rg1 Rd8 16. Bf3 Bf8 17. Rg3 a5 18. Rag1 {½-½ (64) Motwani,P (2543)-Landa,K (2574) Belgium 2005}) 12... Bb7 {[%emt 0:02:05]} 13. Rg1 {[%emt 0:01:01]} Nf6 {[%emt 0:05:48]} 14. Ne5 {[%emt 0:00:32]} c5 $40 {[%emt 0:01:16][%mdl 128] Black has some attack.} 15. cxd5 {[%emt 0:05:44]} Nxd5 {[%emt 0:18:28]} 16. Nxd5 {[%emt 0:04:25]} Bxd5 {[%emt 0:04:11]} 17. e4 {[%emt 0:04:43]} (17. dxc5 $11 Bxc5 18. Qg3 Bxg2+ 19. Qxg2) 17... Bb7 $15 {[%emt 0:00:45]} 18. d5 {[%emt 0:00:19]} f6 {[%emt 0:05:21]} 19. Ng4 {[%emt 0:03:02]} (19. Nc4 $11) 19... f5 {[%emt 0:04:26]} (19... exd5 $17 20. exd5 Kh8) 20. exf5 $11 {[%emt 0:05:15]} (20. Ne3 fxe4 21. Bxe4 Rxf4 $17) 20... Bxd5 {[%emt 0:03:41]} (20... Rxf5 21. Qe3 Kh8 22. dxe6 Bxg2+ 23. Rxg2 $14) (20... exf5 $11 {keeps the balance.} 21. Ne5 Bd6) 21. Qg3 $2 {[%emt 0:01:59]} (21. Qh3 $1 $16 {keeps the pressure on.}) 21... Bh4 $17 {[%emt 0:04:16] This bishop pair is nice.} ({Reject} 21... exf5 22. Rad1 (22. Ne3 Bxg2+ 23. Qxg2 Bf6 $17) 22... Bh4 23. Bxd5+ $11) 22. Qh3 {[%emt 0:07:33]} exf5 {[%emt 0:01:47]} 23. Ne3 {[%emt 0:02:20][%csl LRd5,LRf5]} Bxg2+ {[%emt 0:01:05]} 24. Rxg2 {[%emt 0:00:10]} Bf6 $1 {[%emt 0:03:12]} 25. Rd1 {[%emt 0:01:56]} Qe8 {[%emt 0:02:01]} 26. Nxf5 {[%emt 0:00:22] [#]} Kh8 {[%emt 0:01:49] [#]} ({Black should try} 26... Rd8 $1 $17 {[%cal Rd8d1]} 27. Rdg1 Qc6) 27. Rdg1 {[%emt 0:05:14]} (27. Nxg7 $1 $11 Qe2 (27... Bxg7 28. Rxg7) 28. Rdg1) 27... Qd7 {[%emt 0:08:30] Strongly threatening ...Bd4.} 28. Qh5 {[%emt 0:04:56]} Qf7 {[%emt 0:04:41]} 29. Qe2 {[%emt 0:03:04]} (29. Qf3 $17 {was necessary.}) 29... g6 {[%emt 0:01:46]} ({Inferior is} 29... Qxa2 30. Nxg7 Rg8 31. Qe4 $17) 30. Ng3 {[%emt 0:10:51]} (30. Ne3 $142) 30... Qxa2 {[%emt 0:01:30]} 31. f3 {[%emt 0:03:47]} (31. f5 $142 gxf5 32. Nxf5) 31... Rae8 {[%emt 0:00:50]} 32. Qd2 {[%emt 0:03:39]} Bd4 {[%emt 0:00:48]} 33. Re1 {[%emt 0:00:18]} (33. Rf1 $142) 33... Qb3 {[%emt 0:01:27]} ({Wrong is} 33... Rxe1+ $2 34. Qxe1 Qb3 35. f5 $19) 34. f5 {[%emt 0:02:23]} Rxe1+ {[%emt 0:01:08] Black is clearly winning.} 35. Qxe1 {[%emt 0:00:15]} Qxf3 {[%emt 0:00:42]} 36. h4 {[%emt 0:03:11]} (36. fxg6 $142 hxg6 37. h3) 36... gxf5 $19 {[%emt 0:00:48] ...f4 is the strong threat.} 37. Kh2 {[%emt 0:03:02]} Rg8 {[%emt 0:00:43] Weighted Error Value: White=0.75/Black=0.23 (precise)} 0-1

[Event "Kvika Banki League Iceland 2022-23"]
[Site "Reykjavik"]
[Date "2022.10.16"]
[Round "5.9"]
[White "Heimisson, Hilmir Freyr"]
[Black "Steingrimsson, Hedinn"]
[Result "1-0"]
[ECO "E51"]
[WhiteElo "2293"]
[BlackElo "2512"]
[Annotator "TA"]
[PlyCount "53"]
[EventDate "2022.10.13"]
[EventType "team-tourn"]
[EventCountry "ISL"]
[SourceTitle "playchess.com"]
[Source "ChessBase"]
[SourceQuality "1"]
[TimeControl "5400+30"]

{[%evp 13,53,0,0,0,21,13,18,14,32,32,43,25,49,34,150,11,119,123,114,120,303,308,287,301,325,134,1408,1170,1353,1295,29983,29983,29985,29986,29985,29984,29988,29989,29989,29988,29988,29987]} 1. d4 {[%emt 0:00:07]} Nf6 {[%emt 0:02:11]} 2. c4 {[%emt 0:01:14]} e6 {[%emt 0:02:43]} 3. Nc3 {[%emt 0:00:07]} Bb4 {[%emt 0:00:06]} 4. Bd2 {[%emt 0:00:03]} O-O {[%emt 0:01:28]} 5. Nf3 {[%emt 0:00:08]} d5 {[%emt 0:04:20]} 6. e3 {[%emt 0:00:14]} b6 {[%emt 0:00:21]} 7. cxd5 {[%emt 0:00:22]} exd5 {[%emt 0:00:14]} 8. Rc1 $1 {[%emt 0:00:07] E51: Nimzo-Indian: Rubinstein: 4...0-0 5 Nf3 d5.} a6 {[%emt 0:01:31]} 9. Bd3 {[%emt 0:00:20]} Re8 {[%emt 0:02:07]} 10. Ne5 {[%emt 0:02:04] The position is equal.} Bf8 {[%emt 0:11:25]} 11. f4 {[%emt 0:01:14]} c5 {[%emt 0:04:33]} 12. O-O {[%emt 0:06:16]} Bb7 {[%emt 0:00:48]} 13. Be1 {[%emt 0:02:35] Threatens to win with Bh4.} Nc6 {[%emt 0:03:40] [#]} (13... cxd4 $14 14. exd4 Nc6) 14. Ne2 $146 {[%emt 0:01:06] White has more active pieces.} (14. Bh4 $16) ({Predecessor:} 14. Bf2 Rc8 15. Qf3 b5 16. Bf5 Rc7 17. Bh4 Be7 18. Rcd1 g6 19. Bb1 cxd4 20. exd4 {½-½ (72) Sargsyan,T (2136)-Sargsyan,S (2472) Yerevan 2018}) 14... Ne4 {[%emt 0:18:44]} (14... g6 $11) 15. Bxe4 $16 {[%emt 0:22:05]} dxe4 {[%emt 0:00:07] [#]} 16. Nxf7 {[%emt 0:00:07] Strongly threatening Qb3.} (16. Qb3 Nxe5 17. fxe5 Bd5 $15) 16... Kxf7 $2 {[%emt 0:00:14] [#]} (16... Qd5 $16 17. Ng5 h6) 17. Qb3+ $1 $18 {[%emt 0:01:41]} Kg6 {[%emt 0:00:03]} 18. f5+ {[%emt 0:12:58]} Kh6 {[%emt 0:00:14]} 19. Rf4 {[%emt 0:01:43]} (19. Bg3 $18 {Black must now prevent Qf7.} Qd7 20. Qxb6) 19... Qd7 {[%emt 0:12:50][%mdl 8192] Against Qf7} (19... cxd4 $2 20. Rh4+ Qxh4 21. Bxh4 $18) (19... g5 $16 20. fxg6 hxg6) 20. Rh4+ {[%emt 0:12:37][%mdl 64] Skewer} Kg5 {[%emt 0:01:28]} 21. Nf4 {[%emt 0:00:07] Rh5+ would kill now.} (21. d5 Ne5 22. Nc3 (22. Qxb6 Qd6 $17) 22... Kf6 23. Nxe4+ Kf7 $16) 21... g6 {[%emt 0:08:06] Prevents Rh5+.} 22. fxg6 {[%emt 0:09:39] White mates.} hxg6 {[%emt 0:00:08]} 23. Qg8 {[%emt 0:15:57][%csl Gf4][%cal Rg8g6]} Qg7 {[%emt 0:00:51]} 24. Qd5+ {[%emt 0:00:26]} Ne5 {[%emt 0:07:00]} 25. Nh3+ {[%emt 0:00:13]} Kf6 {[%emt 0:00:17]} 26. dxe5+ {[%emt 0:01:36]} Rxe5 {[%emt 0:00:29]} 27. Rf4+ {[%emt 0:00:06] Black got outplayed after the opening.  Weighted Error Value: White=0.19 (very precise) /Black=0.71} 1-0

[Event "Kvika Banki League Iceland 2022-23"]
[Site "Reykjavik"]
[Date "2022.10.16"]
[Round "5.10"]
[White "Kazakouski, Valery"]
[Black "Jensson, Einar Hjalti"]
[Result "1-0"]
[ECO "A11"]
[WhiteElo "2538"]
[BlackElo "2331"]
[Annotator "TA"]
[PlyCount "43"]
[EventDate "2022.10.13"]
[EventType "team-tourn"]
[EventCountry "ISL"]
[SourceTitle "playchess.com"]
[Source "ChessBase"]
[SourceQuality "1"]
[TimeControl "5400+30"]

{[%evp 9,43,14,20,5,2,8,15,15,20,16,10,23,22,17,14,25,11,19,18,12,18,0,0,0,18,12,25,21,29,19,19,22,154,161,372,356]} 1. Nf3 {[%emt 0:00:04]} d5 {[%emt 0:02:51]} 2. c4 {[%emt 0:00:31]} c6 {[%emt 0:00:06]} 3. g3 {[%emt 0:00:14]} Bg4 {[%emt 0:01:01]} 4. Bg2 {[%emt 0:00:10]} e6 {[%emt 0:01:25]} 5. O-O {[%emt 0:00:41]} Nd7 {[%emt 0:00:59]} 6. Qb3 {[%emt 0:01:36] A11: English Opening: 1...c6.} Qb6 {[%emt 0:01:07]} 7. d3 {[%emt 0:00:10]} dxc4 {[%emt 0:16:29]} 8. Qxc4 {[%emt 0:02:13] The position is equal.} Bxf3 {[%emt 0:01:10]} 9. Bxf3 {[%emt 0:00:26]} Ne5 {[%emt 0:00:27]} 10. Qe4 {[%emt 0:00:37]} Nxf3+ {[%emt 0:00:29]} 11. Qxf3 {[%emt 0:00:12]} Nf6 {[%emt 0:00:17]} 12. Nd2 {[%emt 0:00:16][%cal Bb1d2,Bd2c4,Bc4a5,Ba5c6][%mdl 32]} Be7 {[%emt 0:07:30]} 13. Nc4 {[%emt 0:00:12]} Qd8 {[%emt 0:00:14]} 14. Bd2 {[%emt 0:01:51]} O-O {[%emt 0:00:22]} 15. b4 {[%emt 0:03:12]} Nd5 {[%emt 0:03:14]} 16. Rab1 {[%emt 0:00:32] [#]} a6 $146 {[%emt 0:01:43]} ({Predecessor:} 16... Bg5 17. Rfc1 Bxd2 18. Nxd2 a6 19. Nc4 Nb6 20. Qe3 Nxc4 21. Rxc4 Qd5 22. Qb6 Qb5 {1-0 (56) Prohaszka,P (2586)-Velicka,P (2397) Aghios Kirykos 2015}) 17. Rfc1 {[%emt 0:01:42]} Nb6 {[%emt 0:13:02]} 18. Na5 {[%emt 0:02:14]} Qc7 {[%emt 0:00:48]} 19. h4 {[%emt 0:18:11][%cal Ob4b5]} Rfd8 {[%emt 0:01:49]} 20. h5 {[%emt 0:01:26]} Rd7 {[%emt 0:10:15] [#]} (20... h6 $11 {remains equal.}) 21. Nxc6 $1 $16 {[%emt 0:03:58] White is more active.} Bf6 {[%emt 0:00:47]} (21... bxc6 {might work better.} 22. Rxc6 Qb7) 22. Bf4 {[%emt 0:01:45] Weighted Error Value: White=0.04 (flawless) /Black=0.29 (precise)} ({But not} 22. Ne7+ Rxe7 23. Rxc7 Rxc7 $18) 1-0

[Event "Kvika Banki League Iceland 2022-23"]
[Site "Reykjavik"]
[Date "2022.10.16"]
[Round "5.11"]
[White "Gislason, Gudmundur"]
[Black "Ragnarsson, Dagur"]
[Result "0-1"]
[ECO "D76"]
[WhiteElo "2293"]
[BlackElo "2348"]
[Annotator "TA"]
[PlyCount "56"]
[EventDate "2022.10.13"]
[EventType "team-tourn"]
[EventCountry "ISL"]
[SourceTitle "playchess.com"]
[Source "ChessBase"]
[SourceQuality "1"]
[TimeControl "5400+30"]

{[%evp 17,56,9,12,-2,0,-43,10,-74,-66,-109,-99,-101,-89,-98,-87,-95,-103,-120,-109,-138,-139,-156,-157,-193,-175,-188,-193,-212,-185,-242,-204,-277,-261,-331,-254,-300,-292,-307,-301,-290,-257]} 1. d4 {[%emt 0:00:04]} Nf6 {[%emt 0:00:53]} 2. Nf3 {[%emt 0:00:02]} g6 {[%emt 0:00:09]} 3. g3 {[%emt 0:00:07]} Bg7 {[%emt 0:00:08]} 4. Bg2 {[%emt 0:00:05]} O-O {[%emt 0:00:07]} 5. O-O {[%emt 0:00:07]} d5 {[%emt 0:00:05]} 6. c4 {[%emt 0:01:22]} dxc4 {[%emt 0:01:24]} 7. Qc2 {[%emt 0:01:36]} Nd5 {[%emt 0:09:04]} 8. Qxc4 {[%emt 0:01:00]} Nb6 {[%emt 0:00:40]} 9. Qc2 {[%emt 0:05:27]} Nc6 {[%emt 0:00:38]} 10. Rd1 {[%emt 0:04:24] D76: Fianchetto Grünfeld: Main Line with 7...Nb6.} Bf5 {[%emt 0:04:33]} (10... Nxd4 $2 11. Nxd4 Bxd4 12. e3 $18) (10... Bxd4 $2 11. e3 $18) 11. Qd2 {[%emt 0:02:12]} e5 {[%emt 0:25:19] [#]} (11... Qe8 $15) 12. d5 $146 {[%emt 0:05:29] [#]} (12. dxe5 $11 {keeps the balance.} Qxd2 13. Bxd2) ({Predecessor:} 12. dxe5 Qxd2 13. Bxd2 Nxe5 14. Nxe5 Bxe5 15. Bc3 Rfd8 16. Rc1 Bxc3 17. Nxc3 c6 18. Rd1 {0-1 (46) Sygulski,A (2410)-Pribyl,J (2450) Jurmala 1987}) 12... Nd4 $1 $17 {[%emt 0:00:31]} 13. Nxd4 {[%emt 0:29:00]} exd4 {[%emt 0:00:10]} 14. e4 {[%emt 0:05:43]} dxe3 $1 {[%emt 0:03:35]} 15. fxe3 {[%emt 0:02:47]} Re8 {[%emt 0:03:56]} 16. Nc3 {[%emt 0:00:48]} Nc4 {[%emt 0:02:21][%csl LRd2,LRe3]} 17. Qf2 {[%emt 0:00:18] [#]} Nd6 $1 {[%emt 0:00:17] Inhibits e4. Black has more active pieces.} 18. Re1 {[%emt 0:03:40]} Ne4 {[%emt 0:08:25]} 19. Nxe4 {[%emt 0:00:07]} Bxe4 {[%emt 0:00:04]} 20. Bxe4 {[%emt 0:00:19]} Rxe4 {[%emt 0:00:06]} 21. Rd1 {[%emt 0:00:16]} Qd6 {[%emt 0:02:50]} 22. a4 {[%emt 0:00:33]} h5 {[%emt 0:02:40][%cal Bh7h5,Bh5h4][%mdl 32]} 23. a5 {[%emt 0:01:33]} (23. Ra2 {was worth a try.}) 23... Rae8 {[%emt 0:00:47][%cal Oh5h4]} 24. Ra3 {[%emt 0:01:01]} h4 {[%emt 0:02:00] Black has a decisive advantage.} 25. Rb3 {[%emt 0:00:48]} b6 {[%emt 0:00:08] White must now prevent ...hxg3.} 26. axb6 {[%emt 0:00:06]} axb6 {[%emt 0:00:03]} 27. Rbd3 {[%emt 0:00:39]} hxg3 {[%emt 0:00:23]} 28. hxg3 {[%emt 0:00:39]} Be5 {[%emt 0:01:02] White did not feel at home in the position after the opening.  Weighted Error Value: White=0.33/Black=0.11 (very precise)} 0-1

[Event "Kvika Banki League Iceland 2022-23"]
[Site "Reykjavik"]
[Date "2022.10.16"]
[Round "5.12"]
[White "Bjornsson, Sigurbjorn"]
[Black "Briem, Benedikt"]
[Result "1-0"]
[ECO "A11"]
[WhiteElo "2308"]
[BlackElo "2208"]
[Annotator "TA"]
[PlyCount "101"]
[EventDate "2022.10.13"]
[EventType "team-tourn"]
[EventCountry "ISL"]
[SourceTitle "playchess.com"]
[Source "ChessBase"]
[SourceQuality "1"]
[TimeControl "5400+30"]

{[%evp 22,101,10,-65,21,-78,32,27,28,9,38,37,85,54,81,52,94,63,53,52,50,42,39,16,9,12,27,7,22,22,21,20,25,17,37,7,32,0,44,25,25,12,47,48,58,12,12,12,12,16,15,0,0,0,0,0,8,0,0,0,0,0,6,0,257,85,189,189,282,273,277,267,2434,1897,29969,6049,29981,29982,29990,29991,29997,29998]} 1. c4 {[%emt 0:00:03]} c6 {[%emt 0:00:35]} 2. g3 {[%emt 0:00:19]} d5 {[%emt 0:01:19]} 3. Nf3 {[%emt 0:00:05]} Nf6 {[%emt 0:06:40]} 4. Bg2 {[%emt 0:00:06]} g6 {[%emt 0:00:26]} 5. b3 {[%emt 0:01:58]} Bg7 {[%emt 0:00:29]} 6. Bb2 {[%emt 0:00:12]} O-O {[%emt 0:00:09]} 7. O-O {[%emt 0:00:34]} Bg4 {[%emt 0:01:24]} 8. d3 {[%emt 0:05:32]} Re8 {[%emt 0:03:05]} 9. Nbd2 {[%emt 0:08:27]} Nbd7 {[%emt 0:01:28]} 10. Qc2 {[%emt 0:03:01]} e5 {[%emt 0:06:52]} 11. h3 {[%emt 0:01:44]} Bxf3 {[%emt 0:00:18]} 12. Bxf3 {[%emt 0:03:05]} (12. Nxf3 $11 e4 13. dxe4) 12... a5 {[%emt 0:02:47] [#] A11: English Opening: 1...c6.} (12... e4 $1 $15 13. dxe4 dxe4 14. Nxe4 Nxe4 15. Bxg7 Nxg3 16. fxg3 Kxg7) 13. a3 $146 {[%emt 0:04:35] [#]} (13. e3 $11) ({Predecessor:} 13. cxd5 cxd5 14. Rac1 Rc8 15. Qb1 Qb6 16. Bg2 Bh6 17. Rc2 Qb4 18. e3 Bf8 19. Rfc1 Rxc2 20. Rxc2 Bd6 21. Nf3 Qb6 {½-½ (21) Campos,M (2252)-Fiorito,F (2291) Buenos Aires 2022}) 13... Qe7 {[%emt 0:06:29]} ({Black should play} 13... e4 $1 $17 {[%cal Re4f3]} 14. dxe4 dxe4 15. Nxe4 Nxe4 16. Bxg7 Nxg3 17. fxg3 Kxg7) 14. e3 $14 {[%emt 0:03:41]} e4 {[%emt 0:07:47] White has an edge.} 15. dxe4 {[%emt 0:01:28]} dxe4 {[%emt 0:05:26]} 16. Bg2 {[%emt 0:00:45]} Nc5 {[%emt 0:04:09]} (16... b6 $14) 17. Rad1 {[%emt 0:02:25]} Rad8 {[%emt 0:03:37]} 18. Bd4 {[%emt 0:03:47]} Nh5 {[%emt 0:16:09]} 19. Bxg7 {[%emt 0:12:07]} Nxg7 {[%emt 0:05:31]} 20. b4 $1 {[%emt 0:00:57]} axb4 {[%emt 0:00:22]} 21. axb4 {[%emt 0:00:03]} Na6 {[%emt 0:00:25]} 22. Nxe4 {[%emt 0:00:54] aiming for Qc3.} f5 $1 {[%emt 0:00:16]} 23. Nc3 {[%emt 0:07:45][%cal Be4c3,Bc3e2,Be2d4][%mdl 32] Black must now prevent b5.} Qxb4 {[%emt 0:03:53]} 24. Ne2 {[%emt 0:00:38]} Ne6 {[%emt 0:01:30]} 25. Nd4 {[%emt 0:01:15]} Nac5 {[%emt 0:01:07][%cal Ba6c5,Bc5e4,Be4f6,Bf6g4][%mdl 32]} 26. h4 {[%emt 0:03:59]} Nxd4 {[%emt 0:01:55]} 27. exd4 {[%emt 0:00:20]} Ne4 {[%emt 0:00:15]} 28. Rd3 {[%emt 0:02:50] Prevents Nc3.} (28. Rb1 $5 {[%cal Rb1b4]} Qe7 29. Rfd1 $14) 28... Rd7 {[%emt 0:05:05]} 29. h5 {[%emt 0:03:25]} Qa5 {[%emt 0:03:18]} (29... gxh5 $5 {[%cal Rh5h4]} 30. d5 cxd5 $11) 30. Rfd1 {[%emt 0:04:08]} Nf6 {[%emt 0:00:51]} 31. hxg6 {[%emt 0:01:42]} (31. Bf3 {looks sharper.} f4 32. hxg6 Rg7 33. Qd2) 31... hxg6 {[%emt 0:00:50]} 32. Qc1 {[%emt 0:01:15]} Kg7 {[%emt 0:03:18]} 33. Re3 {[%emt 0:02:03]} (33. Bf3 $14 {deserves consideration.}) 33... Rxe3 $11 {[%emt 0:01:07]} 34. Qxe3 {[%emt 0:00:17]} Qb4 {[%emt 0:01:15]} 35. Qd3 {[%emt 0:01:39]} Ng4 {[%emt 0:00:46]} 36. d5 {[%emt 0:02:18]} Qb2 {[%emt 0:01:21]} 37. Qf1 {[%emt 0:04:12]} cxd5 {[%emt 0:01:56]} 38. Bxd5 {[%emt 0:00:25]} b6 {[%emt 0:02:36]} 39. Re1 {[%emt 0:03:11]} Ne5 {[%emt 0:02:11]} 40. Kg2 {[%emt 0:02:49]} Ng4 {[%emt 0:00:40]} 41. Re2 {[%emt 0:01:14]} Qd4 {[%emt 0:00:19]} 42. Qe1 {[%emt 0:00:48]} Qc5 $2 {[%emt 0:00:53][%mdl 8192]} (42... Nf6 $11 {and Black is okay.}) 43. Re8 $2 {[%emt 0:00:29]} (43. Qa1+ $18 {is the precise move to win.} Kh7 44. f3 (44. Qh1+ Nh6 $16) 44... Ne3+ 45. Kh1 Nxd5 46. Rh2+ Kg8 47. cxd5 (47. Qh8+ Kf7 $16) 47... Qxd5 48. Qh8+ Kf7 49. Rh7+ Ke6 50. Qe8+ Kf6 51. Rxd7 Qxf3+ 52. Kg1 (52. Kh2 Qf2+ 53. Kh3 Qf1+ 54. Kh2 Qf2+ 55. Kh3 Qf1+ 56. Kh2 Qf2+ $11) 52... Qxg3+ 53. Kf1 Qf4+ 54. Ke2 Qg4+ 55. Kd2 Qb4+ 56. Kd3) 43... Nf6 {[%emt 0:00:14] [#]} (43... Qd4 $16) 44. Qa1 $1 $36 {[%emt 0:02:46][%mdl 2048] Threatening mate with Rg8+. White has strong initiative.} Qd6 {[%emt 0:00:35]} (44... Rxd5 $142 45. cxd5 Qxd5+ 46. Kh2 Qd6 47. Qa7+ Kh6) 45. Re6 {[%emt 0:01:58]} Qf8 {[%emt 0:00:34]} 46. Qe5 {[%emt 0:00:55]} b5 $2 {[%emt 0:00:37]} (46... Qd8 47. f3 Rf7) 47. Bc6 {[%emt 0:01:30]} Rd2 {[%emt 0:00:36]} 48. cxb5 {[%emt 0:00:55] b6 would kill now.} f4 {[%emt 0:00:34]} 49. g4 {[%emt 0:00:16] White mates.} Qd8 {[%emt 0:00:30]} 50. Re7+ {[%emt 0:01:31]} Kg8 {[%emt 0:00:04]} 51. Qe6+ {[%emt 0:00:06] Weighted Error Value: White=0.20 (precise) /Black=0.62} 1-0

[Event "Kvika Banki League Iceland 2022-23"]
[Site "Reykjavik"]
[Date "2022.10.16"]
[Round "5.13"]
[White "Briem, Stephan"]
[Black "Johannesson, Oliver"]
[Result "1/2-1/2"]
[ECO "D10"]
[WhiteElo "2083"]
[BlackElo "2205"]
[Annotator "TA"]
[PlyCount "78"]
[EventDate "2022.10.13"]
[EventType "team-tourn"]
[EventCountry "ISL"]
[SourceTitle "playchess.com"]
[Source "ChessBase"]
[SourceQuality "1"]
[TimeControl "5400+30"]

{[%evp 12,78,33,12,29,18,29,33,31,17,34,27,27,29,42,27,29,21,44,11,12,12,17,5,4,4,27,27,33,18,21,18,22,18,18,18,21,18,18,18,26,18,49,33,49,49,49,49,49,49,49,49,58,58,58,49,49,49,49,49,49,0,0,0,0,0,0,0,0]} 1. d4 {[%emt 0:00:02]} d5 {[%emt 0:01:11]} 2. c4 {[%emt 0:00:33]} c6 {[%emt 0:00:06]} 3. cxd5 {[%emt 0:01:07]} cxd5 {[%emt 0:00:09]} 4. Bf4 {[%emt 0:00:29]} Nf6 {[%emt 0:00:36]} 5. Nc3 {[%emt 0:00:21]} Nc6 {[%emt 0:00:34]} 6. e3 {[%emt 0:00:21]} a6 {[%emt 0:00:46]} 7. Be2 {[%emt 0:01:09]} e6 {[%emt 0:03:46] D10: Slav Defence: 3 cxd5 (without early Nf3) and 3 Nc3.} 8. Rc1 {[%emt 0:03:08]} Bd6 {[%emt 0:02:22]} 9. Bxd6 {[%emt 0:00:20]} Qxd6 {[%emt 0:00:09] White is slightly better.} 10. f4 {[%emt 0:00:14]} Ne4 {[%emt 0:07:47]} 11. Nf3 {[%emt 0:01:34]} Nxc3 {[%emt 0:07:18]} 12. Rxc3 {[%emt 0:02:11]} Bd7 {[%emt 0:02:29]} 13. O-O {[%emt 0:00:54]} O-O {[%emt 0:00:04]} 14. Bd3 {[%emt 0:06:30] [#]} g6 $146 {[%emt 0:08:37]} ({Predecessor:} 14... f5 15. Qd2 g6 16. Rfc1 Rfc8 17. a3 Nd8 18. Rc5 Nf7 19. b4 b6 20. Rxc8+ Bxc8 {½-½ (79) Li,C (2686)-Ma,Q (2584) Kazan 2013}) 15. Ne5 {[%emt 0:18:11]} Rac8 {[%emt 0:08:02]} 16. Qd2 {[%emt 0:01:14]} f6 {[%emt 0:09:57]} 17. Nxc6 {[%emt 0:01:32]} Rxc6 {[%emt 0:01:16]} 18. Rxc6 {[%emt 0:03:53]} Qxc6 {[%emt 0:00:13]} 19. Rc1 {[%emt 0:03:30]} Qb6 {[%emt 0:00:07]} 20. Rc5 {[%emt 0:14:13]} Rc8 {[%emt 0:02:10]} 21. Rxc8+ {[%emt 0:04:09]} Bxc8 $11 {[%emt 0:00:11][%mdl 4096] Endgame KQB-KQB} 22. Qc3 {[%emt 0:00:19]} Bd7 {[%emt 0:03:08]} 23. Kf2 {[%emt 0:03:06]} Kf7 {[%emt 0:01:38]} 24. h4 {[%emt 0:01:02]} f5 {[%emt 0:03:52]} 25. Be2 {[%emt 0:03:48]} h5 {[%emt 0:00:14]} 26. Ke1 {[%emt 0:00:38]} Qc6 {[%emt 0:01:08]} 27. Kd2 {[%emt 0:01:46]} Qxc3+ {[%emt 0:05:00]} 28. Kxc3 $14 {[%emt 0:01:59] [#] aiming for Kb4. KB-KB} a5 {[%emt 0:01:42]} 29. b4 {[%emt 0:00:40]} b6 {[%emt 0:00:44]} 30. Kb2 {[%emt 0:04:11]} Ke7 {[%emt 0:00:28]} ({Weaker is} 30... axb4 31. Kb3 $16) 31. Ka3 {[%emt 0:00:01]} Kd6 {[%emt 0:00:35]} 32. Bd1 {[%emt 0:02:27]} Kc7 {[%emt 0:01:36]} 33. Bc2 {[%emt 0:00:22]} Kb7 {[%emt 0:00:35]} 34. Bd3 $1 {[%emt 0:02:32] Inhibits Bb5.} Ka7 {[%emt 0:00:47]} 35. Be2 {[%emt 0:02:12]} Kb7 {[%emt 0:00:07]} 36. bxa5 {[%emt 0:00:14]} (36. Kb3 $14 {might be stronger.}) 36... bxa5 $11 {[%emt 0:00:08] The position is equal.} 37. Bd1 {[%emt 0:00:32]} Kb6 {[%emt 0:00:07]} 38. Bb3 {[%emt 0:00:26]} Bc6 {[%emt 0:00:07]} 39. Ba4 {[%emt 0:00:15]} Bxa4 {[%emt 0:00:14] Weighted Error Value: White=0.07 (flawless) /Black=0.05 (flawless)} 1/2-1/2